Workbook

Sheet Calculation
B2: DESIGN OF SOLID desiccant DRYER
B3: Based on GPSA
B5: DATA
B6: Gas flow | D6: 100 | E6: MMSCFD | G6: Input/Selected
B7: Pressure at inlet condition | D7: 600 | E7: PSIA | G7: Determined
B8: Temperature at inlet condition | D8: 100 | E8: oF | G8: Calculated
D9: =D8+460 -> 560 | E9: R
B10: Molecular Weight | D10: 18
B11: Required outlet dew point | D11: -150 | E11: oF
B12: Miu | C12: Viscosity | D12: 0.015 | E12: cP
B13: Compressibility Factor | D13: 0.93 | F13: (Based on Z factor figure)
B14: Rho | C14: Density | D14: =D7*D10/(D13*10.7316*D9) -> 1.932361175 | E14: lb/ft3
B15: Regeneration temperature | D15: 500 | E15: oF
B17: PARAMETERS TO BE DETERMINED
B18: desiccant type | D18: Mole Sieve Davison-4A
B19: Particles Type | D19: 1/8" bead
B20: B | C20: Constant (function of particles type) | D20: =VLOOKUP(D19,Sheet4!$B$3:$D$6,2,FALSE) -> 0.056
B21: C | C21: Constant (function of particles type) | D21: =VLOOKUP(D19,Sheet4!$B$3:$D$6,3,FALSE) -> 8.89e-05
B22: Z | D22: =VLOOKUP(D19,Sheet4!$B$3:$E$6,4,FALSE) -> 1.7
B23: Inlet Water Content | D23: 70 | E23: lb/MMscf | F23: (Fig. 20-3)
B24: Outlet Water Content | D24: 0 | E24: lb/MMscf | F24: (Fig. 20-3)
B25: Type of molecular sieve | D25: =VLOOKUP(D18,Sheet4!$B$13:$C$18,2,FALSE) -> Spherical
B26: Bulk density of molecular sieve | D26: =VLOOKUP(D18,Sheet4!$B$13:$D$18,3,FALSE) -> 42-45 | E26: lb/ft3
B27: Selected bulk density of molecular sieve | D27: 45 | E27: lb/ft3
B28: Heat capacity of desiccant | D28: =VLOOKUP(D18,Sheet4!$B$13:$F$18,5,FALSE) -> 0.24 | E28: Btu/(lb F)
B30: DIMENSION CALCULATION
B31: Water to be removed | D31: =(D23-D24)*D6 -> 7000 | E31: lb/day
B32: V | C32: Superficial vapor velocity | D32: 41.40820959 | E32: ft/min | F32: (Guess)
B33: Delta P/L | C33: Pressure drop per length of packed bed | D33: =D20*D12*D32+D21*D14*D32^2 -> 0.3293355702 | E33: psi/ft | F33: (Eq. 20-9). Use goal seek to get 0,333
B34: Status | D34: =IF(D33<0.333,"OK","Redesign") -> OK | F34: (Maximum 0,333 psi/ft)
B36: Gas flow rate at standard condition | D36: =D6*1000000/24/60 -> 69444.44444 | E36: scfm
B37: Temperature at standard condition | D37: 14.7 | E37: psia
B38: Pressure at standard condition | D38: 60 | E38: F
D39: =D38+460 -> 520 | E39: R
B40: q | C40: Gas flow at actual condition | D40: =(D36*D37/D39)*(D9/D7) -> 1832.264957 | E40: acfm
B41: D | C41: Diameter | D41: =(4*D40/(PI()*D32))^0.5 -> 7.505955247 | E41: ft | F41: (Eq. 20-10)
B43: Actual gas velocity | D43: =4*D40/(PI()*D41^2) -> 41.40820959 | E43: ft/min
B44: Act Delta P/L | C44: Pressure drop per length of packed bed | D44: =D20*D12*D43+D21*D14*D43^2 -> 0.3293355702 | E44: psi/ft
B46: Cycle time | D46: 12 | F46: (8-12 hours). For 24-hour cycle consisting of 12 hours adsorbing and 12 hours regenerating (for two towers). 12 hours regenerating consists of heating, cooling, standby, valve switching; the heating time is usually 50%-60% of total regeneration time.
B47: Percentage of heating time | D47: 0.6 | F47: (Usually 50%-60%)
B48: Wr | C48: Water removed per cycle | D48: =D6*(D23-D24)/24*D46 -> 3500 | E48: lb
B49: Css | C49: Saturation correction factor for sieve | D49: 1 | F49: (Fig. 20-70)
B50: CT | C50: Temperature correction factor | D50: 0.93 | F50: (Fig. 20-71)
B51: Saturation capacity | D51: 0.13 | F51: (Assumes 13 lb water per 100 lb desiccant)
B52: Ss | C52: Amount of mol sieve required at saturation zone | D52: =D48/(D51*D49*D50) -> 28949.54508 | E52: lb
B53: Ls | C53: Length of packed at saturation zone | D53: =D52*4/(PI()*D41^2*D27) -> 14.53876132 | E53: ft
B55: Lmtz | C55: Length of mass transfer zone | D55: =(D32/35)^0.3*D22 -> 1.787946189 | E55: ft
C57: Total bed height | D57: =D53+D55 -> 16.32670751 | E57: ft
B58: Free space above and below the bed | D58: 3 | E58: ft
C59: Total length of vessel | D59: =D57+D58 -> 19.32670751 | E59: ft
B61: Pressure drop | D61: =D59*D33 -> 6.364972239 | E61: psi | F61: (Pressure drop should be about 5-8 psi)
D62: =IF(AND(D61>=5,D61<=8),"OK",IF(D61<5,"Add bed height","Add diameter")) -> OK
B63: REGENERATION CALCULATION
B64: Qw | C64: Desorption of water heat duty | D64: =1800*D48 -> 6300000 | E64: Btu | F64: (Eq. 20-14)
B65: Qsi | C65: Duty required to heat molecular sieve to regeneration temperature | D65: =PI()*D41^2*D57*D27/4*D28*(D15-D8) -> 3120931.108 | E65: Btu
B67: Duty required to heat vessel and piping to regeneration temperature
B68: t | C68: Thickness of vessel | D68: =(12*D41*110%*(D7-14.7))/(37600-1.2*110%*(D7-14.7))+0.0625 -> 1.637161901 | E68: in
B69: msteel | C69: Weight of steel | D69: =155*(D68+0.125)*(D59+0.75*D41)*D41 -> 51163.6454 | E69: lb
B70: Heat capacity of steel | D70: 0.122 | E70: Btu/(lb F)
B71: Qst | C71: Duty required to heat vessel and piping to regeneration temperature | D71: =D69*D70*(D15-D8) -> 2496785.895 | E71: Btu
B72: Qh | C72: Heat loss | D72: =10%*(D64+D65+D71) -> 1191771.7 | E72: Btu
B73: Qtr | C73: Total regeneration heat duty | D73: =2.5*(D64+D65+D71+D72) -> 32773721.76 | E73: Btu
B75: Heat capacity of regen gas | D75: 0.65 | E75: Btu/(lb F)
B76: Rate of regen gas | D76: =D73/(D75*(D15+50-D6)*D46*D47) -> 15562.07111 | E76: lb/hr
D77: =D76/60 -> 259.3678519 | E77: lb/min
B79: Verification of pressure drop during regeneration to prevent channeling
B81: Gas molecular weight for regeneration | D81: 17
B82: Density of gas for regeneration | D82: =D7*D81/(1*10.7316*(D15+50+460)) -> 0.9410535149 | E82: lb/ft3
B83: Velocity of regeneration gas | D83: =4*D77/(PI()*D41^2*D82) -> 6.228737107 | E83: ft/min
B84: Viscosity of regeneration gas | D84: 0.023 | E84: cP | F84: (From graph)
B85: Delta P/L | D85: =D20*D84*D83+D21*D82*D83^2 -> 0.01126837101 | E85: psi/ft
D86: =IF(D85<=0.11,"OK","Redesign") -> OK | F86: Pressure drop should be maintain at 0.01 psi/ft

Sheet Viscosity

Sheet Sheet4
B2: Particle Type | C2: B | D2: C | E2: Z
B3: 1/8" bead | C3: 0.056 | D3: 8.89e-05 | E3: 1.7
B4: 1/8" extrudate | C4: 0.0722 | D4: 0.000124 | E4: 1.7
B5: 1/16" bead | C5: 0.152 | D5: 0.000136 | E5: 0.85
B6: 1/16" extrudate | C6: 0.238 | D6: 0.00021 | E6: 0.85
C9: Spherical | D9: 42-45
C10: Extruded | D10: 40-44
B12: Desiccant | C12: Shape | D12: Bulk Density (lb/ft3) | E12: Particle Size | F12: Heat Capacity (Btu/lb F) | G12: Approx. Minimum Moisture Content of Effluent Gas (ppmw)
B13: Alumina Gel Alcoa H-151 | C13: Spherical | D13: 52 | E13: 1/4" | F13: 0.2 | G13: 5-10
B14: Activated Alumina Alcoa F-1 | C14: Granular | D14: 52 | E14: 1/4"-8 mesh | G14: 0.1
B15: Silica Gel Sorbed-R | C15: Spherical | D15: 49 | E15: 4-8 mesh | F15: 0.25 | G15: 5-10
B16: Silica Gel Sorbead-H | C16: Spherical | D16: 45 | E16: 3-8 mesh | F16: 0.25 | G16: 5-10
B17: Mole Sieve Davison-4A | C17: Spherical | D17: 42-45 | E17: 4-8 mesh or 8-12 mesh | F17: 0.24 | G17: 0.1
B18: Mole Sieve Linde-4A | C18: Extruded Cylinder | D18: 40-44 | E18: 1/8" or 1/16" | F18: 0.24 | G18: 0.1
B21: Feed Rate | C21: 10 to 1500 MMSCFD
B22: Superficial velocity | C22: Approximately 30 to 35 ft/min (9 to 11 m/min)
B23: Pressure drop | C23: Approximately 5 psi, not to exceed 10 psi
B24: Cycle time | C24: 4 to 24 hours; 8 or a multiple thereof is common
B25: Temperatures and pressures
B26: Adsoption
C27: Temperature : 50 to 115 F
C28: Pressure: to 1500 psig
B30: Regeneration | C30: Temperature: 400 to 600 F
C31: Pressure: adsorption pressure or lower

Sheet Eq. List

Sheet Fig.20-3

Sheet Fig.20-70

Sheet Fig.20-71

Sheet Z factor MW 18.85
